Cogmind - Beta 16 @@@ ROGUE MODE // 2025.10.25 @ 21:27:19 Player: Jack Result: Destroyed by G-47 Trooper with Particle Gun Performance ------------- Evolutions (2) 1000 Regions Visited (7) 1400 Robots Destroyed (7) 35 Value Destroyed (137) 137 Prototype IDs (23) 460 Alien Tech Used (0) 0 Bonus (500) 500 TOTAL SCORE: 3532 Bonus ------- Pacifist 200 Aligned with FarCom 300 Cogmind --------- Core Integrity 0/550 Matter 235/300 Energy 99/100 System Corruption 0% Temperature Cool (9) Movement Core (50) Location -8/Materials Parts ------- > --- POWER (1) -------- (None) > --- PROPULSION (3) --- (None) > --- UTILITY (5) ------ (None) > --- WEAPON (2) ------- (None) > --- INVENTORY (5) ---- Light Ion Engine Skeleton Box Grenade Launcher Peak State ------------ > --- POWER ------------ Light Ion Engine > --- PROPULSION ------- Flight Unit Flight Unit > --- UTILITY ---------- (None) > --- WEAPON ----------- Heavy Assault Rifle Gauss Cannon > --- INVENTORY -------- Skeleton Box Assault Rifle [Rating: 9] Favorites ----------- Power Light Ion Engine Engine Light Ion Engine Propulsion Flight Unit Flight Unit Flight Unit Utility None Weapon Assault Rifle Ballistic Gun Assault Rifle Ballistic Cannon Gauss Cannon Build | -11 -10 -10 -9 -9 -9 -8 -8 ------- Run | Yrd Mat Min Mat Min Exi Min Mat Slots Evolved 4 | . . . 2 . . . 2 Power . | . . . . . . . . Propulsion 1 | . . . 1 . . . . Utility 3 | . . . 1 . . . 2 Weapon . | . . . . . . . . Parts Attached 8 | 2 . . 2 3 . . 1 Power 1 | . . . . 1 . . . Engine 1 | . . . . 1 . . . Core . | . . . . . . . . Reactor . | . . . . . . . . Propulsion 3 | . . . 2 1 . . . Treads . | . . . . . . . . Leg . | . . . . . . . . Wheel . | . . . . . . . . Hover . | . . . . . . . . Flight 3 | . . . 2 1 . . . Utility . | . . . . . . . . Device . | . . . . . . . . Storage . | . . . . . . . . Processor . | . . . . . . . . Hackware . | . . . . . . . . Protection . | . . . . . . . . Artifact . | . . . . . . . . Weapon 4 | 2 . . . 1 . . 1 Energy Gun . | . . . . . . . . Energy Cannon . | . . . . . . . . Ballistic Gun 3 | 2 . . . 1 . . . Ballistic Cannon 1 | . . . . . . . 1 Launcher . | . . . . . . . . Special Weapon . | . . . . . . . . Impact Weapon . | . . . . . . . . Slashing Weapon . | . . . . . . . . Piercing Weapon . | . . . . . . . . Special Melee Weapon . | . . . . . . . . Unidentified Prototypes . | . . . . . . . . Parts Lost 4 | . . . 1 1 . . 2 Power . | . . . . . . . . Propulsion 3 | . . . . 1 . . 2 Utility . | . . . . . . . . Weapon 1 | . . . 1 . . . . Highest Loss Streak 2 | . . . 1 1 . . 2 To Critical Strikes . | . . . . . . . . Average Backups . | . 1 1 . . . 1 2 Power . | . . . . . . . . Propulsion . | . . . . . . . . Utility . | . . . . . . . . Weapon . | . 1 1 . . . . . Tool/Special . | . . . . . . . . Unused Backups 2 | . . . . . . . 2 Power . | . . . . . . . . Propulsion . | . . . . . . . . Utility . | . . . . . . . . Weapon 1 | . . . . . . . 1 Tool/Special 1 | . . . . . . . 1 Average Slot Usage (%) 32 | . 14 14 11 53 55 55 19 Engine 4 | . . . . 7 11 11 1 Flight 13 | . . . 3 25 22 22 10 Ballistic Gun 14 | . 14 14 7 21 22 22 2 Peak Build Rating 9 | 2 1 1 3 7 6 6 9 Average Rating 3 | 1 . 1 1 5 6 6 3 On Entrance 3 | . 1 1 1 3 6 6 6 Avg Prop Armor Cover (%) . | . . . . . . . . Naked Turns 60 | . 3 . 22 . . . 35 Heaviest Build 10 | 4 2 2 2 8 8 8 10 Greatest Support 12 | 3 3 3 8 12 8 8 8 Greatest Overweight (x) 1 | 1 . . . . . . 1 Average Overweight (x) . | . . . . . . . . Largest Inventory Capacity 5 | 5 5 5 5 5 5 5 5 Average Capacity 5 | 5 5 5 5 5 5 5 5 Most Carried 4 | 1 1 1 1 . 1 1 4 Average Carried . | . 1 1 . . . 1 2 Final Capacity 5 | 5 5 5 5 5 5 5 5 Final Carried 3 | 1 1 1 . . 1 1 3 Class Distribution -------------------- 94% | Mutant 5% | Scavenger-Mutant Dominant Class ---------------- Mutant | -10/Materials Mutant | -10/Mines Mutant | -9/Materials Mutant | -9/Mines Mutant | -9/Exiles Mutant | -8/Mines Mutant | -8/Materials Resources | -11 -10 -10 -9 -9 -9 -8 -8 ----------- Run | Yrd Mat Min Mat Min Exi Min Mat Matter Collected 303 | 212 . . . 82 . . 9 Remotely . | . . . . . . . . Salvage Created 125 | . . . 12 99 . . 14 Parts 8 | . . . 2 4 . . 2 Haulers Intercepted . | . . . . . . . . Recyclers Shooed 1 | . . . . . . . 1 Parts Field Recycled . | . . . . . . . . Retrieved Matter . | . . . . . . . . Parts Self-Destructed . | . . . . . . . . Prevented . | . . . . . . . . Parts Restored . | . . . . . . . . Kills | -11 -10 -10 -9 -9 -9 -8 -8 ------- Run | Yrd Mat Min Mat Min Exi Min Mat Combat Hostiles Destroyed 5 | . . . 1 3 . . 1 Guns 4 | . . . 1 3 . . . Cannons 1 | . . . . . . . 1 Classes Destroyed 4 | . . . 1 1 . . 2 Recycler 1 | . . . . 1 . . . Operator 1 | . . . . . . . 1 Swarmer 4 | . . . 1 3 . . . Hunter 1 | . . . . . . . 1 Best Kill Streak 4 | . . . 1 4 . . 1 Combat Bots Only 3 | . . . 1 3 . . 1 Max Kills in Single Turn 2 | . . . 1 2 . . 1 Gunslinging 1 | . . . . 1 . . . Exploded . | . . . . . . . . Melee . | . . . . . . . . Uniques/NPCs Destroyed . | . . . . . . . . Combat | -11 -10 -10 -9 -9 -9 -8 -8 -------- Run | Yrd Mat Min Mat Min Exi Min Mat Hostile Shots Fired 99 | . 5 7 22 21 . 2 42 Missed 30 | . 2 3 8 7 . 1 9 Hits 69 | . 3 4 14 14 . 1 33 Melee 1 | . . . . 1 . . . Projectile 68 | . 3 4 14 13 . 1 33 Critical Strikes 2 | . . . . . . . 2 Damage Taken 1062 | . 43 56 179 137 . 21 626 Core 757 | . 21 14 125 36 . . 561 Absorbed by Shields . | . . . . . . . . Core Remaining (%) 81 | 100 . 86 . . . 59 . Volleys Fired 20 | . . . 3 5 . . 12 Largest 2 | . . . 1 2 . . 1 Hottest 43 | . . . 20 43 . . 40 Shots Fired 26 | . . . 3 11 . . 12 Gun 14 | . . . 3 11 . . . Cannon 12 | . . . . . . . 12 Launcher . | . . . . . . . . Special . | . . . . . . . . Kinetic 26 | . . . 3 11 . . 12 Thermal . | . . . . . . . . Explosive . | . . . . . . . . Electromagnetic . | . . . . . . . . Robot Hit Streak 7 | . . . 3 4 . . 7 Robot Miss Streak 3 | . . . . 3 . . 1 Penetration Max . | . . . . . . . . Secondary Targets 1 | . . . . 1 . . . Max Gunslinging Chain 1 | . . . . 1 . . . Shots Hit Robots 17 | . . . 3 5 . . 9 Core Hits 9 | . . . 1 5 . . 3 Critical Kills . | . . . . . . . . Critical Parts Destroyed . | . . . . . . . . Critical Strikes 1 | . . . . . . . 1 Blast 1 | . . . . . . . 1 Melee Attacks . | . . . . . . . . Impact . | . . . . . . . . Slashing . | . . . . . . . . Piercing . | . . . . . . . . Sneak Attacks . | . . . . . . . . Combat Hostiles . | . . . . . . . . Follow-up Attacks . | . . . . . . . . Damage Inflicted 429 | . 16 . 40 97 . . 276 Guns 135 | . . . 38 97 . . . Cannons 177 | . . . . . . . 177 Explosions 86 | . . . . . . . 86 Melee . | . . . . . . . . Ramming 31 | . 16 . 2 . . . 13 Kinetic 312 | . . . 38 97 . . 177 Thermal . | . . . . . . . . Explosive 86 | . . . . . . . 86 Electromagnetic . | . . . . . . . . Impact . | . . . . . . . . Slashing . | . . . . . . . . Piercing . | . . . . . . . . Highest Corruption 3 | . . . . 3 3 3 . Average Corruption 3 | . . . . 3 3 3 . Corruption Purged . | . . . . . . . . Corruption Blocked . | . . . . . . . . Effects 2 | . . . . 1 1 . . Message Errors 1 | . . . . . 1 . . Misfires 1 | . . . . 1 . . . Overload Shots . | . . . . . . . . Overflow Damage 16 | . . . . . . . 16 Projectiles . | . . . . . . . . Explosions 16 | . . . . . . . 16 Melee . | . . . . . . . . Knockbacks . | . . . . . . . . Impact . | . . . . . . . . Kinetic . | . . . . . . . . Secondary . | . . . . . . . . Self-Inflicted Damage 115 | . 8 . 1 . . . 106 Shots 1 | . . . . . . . 1 Rammed 10 | . 3 3 1 . . . 3 Targets Rammed 10 | . 3 3 1 . . . 3 Kicked . | . . . . . . . . Crushed . | . . . . . . . . Highest Temperature 15 | . . . . . . . 15 Average Temperature 15 | . . . . . . . 15 Received Heat Transfer 354 | . 21 33 54 12 . . 234 Siege Activations . | . . . . . . . . Martial Activations . | . . . . . . . . Shielding Activations . | . . . . . . . . Robots Disrupted . | . . . . . . . . Combat Hostiles . | . . . . . . . . Robots Corrupted . | . . . . . . . . Combat Hostiles . | . . . . . . . . Parts Fried . | . . . . . . . . Impact Corruptions . | . . . . . . . . Robots Melted . | . . . . . . . . Combat Hostiles . | . . . . . . . . Parts Melted . | . . . . . . . . Heat Transferred . | . . . . . . . . Parts Sabotaged . | . . . . . . . . Parts Stolen . | . . . . . . . . Parts Stripped . | . . . . . . . . Power Chain Reactions . | . . . . . . . . Alert | -11 -10 -10 -9 -9 -9 -8 -8 ------- Run | Yrd Mat Min Mat Min Exi Min Mat Maximum Alert Level . | . . . . . . . . Low Security (%) 100 | 100 100 100 100 100 . 100 100 Level 1 . | . . . . . . . . Level 2 . | . . . . . . . . Level 3 . | . . . . . . . . Level 4 . | . . . . . . . . Level 5 . | . . . . . . . . High Security . | . . . . . . . . Max Security . | . . . . . . . . Peak Influence 84 | . . . 60 84 . . 76 Initial 19 | . . . . 19 . . . Average 24 | . . . 16 55 . . 33 Influence Increases 231 | . . . 67 75 . . 89 Destroy 0b10 Robot/C 100 | . . . 20 60 . . 20 Destroy 0b10 Robot/NC 10 | . . . . 5 . . 5 Destroy Leader 30 | . . . 10 10 . . 10 Successful Hack 7 | . . . 7 . . . . Disable Machine 30 | . . . . . . . 30 Destroy Structure 24 | . . . . . . . 24 Lose Combat Pursuer 30 | . . . 30 . . . . Influence Decreases 195 | . . . 17 91 34 . 53 Entered New Map 65 | . . . . 31 34 . . Time Decay 100 | . . . 17 50 . . 33 Lost Part 30 | . . . . 10 . . 20 Squads Dispatched 2 | . 1 . . . . . 1 Investigation . | . . . . . . . . Extermination . | . . . . . . . . Reinforcement 2 | . 1 . . . . . 1 Assault . | . . . . . . . . Garrison . | . . . . . . . . Intercept . | . . . . . . . . Searches Triggered . | . . . . . . . . Construction Impeded . | . . . . . . . . Haulers Reinforced . | . . . . . . . . Active Scanning Responses . | . . . . . . . . Cargo Convoy Interrupts . | . . . . . . . . Stealth | -11 -10 -10 -9 -9 -9 -8 -8 --------- Run | Yrd Mat Min Mat Min Exi Min Mat Distress Signals 2 | . 1 . 1 . . . . Communications Jammed . | . . . . . . . . Distress Signals . | . . . . . . . . Times Spotted 29 | . 5 2 6 5 . 1 10 Peak Tracking Total 9 | . 7 2 6 3 . 1 9 Tactical Retreats 1 | . . . 1 . . . . Traps | -11 -10 -10 -9 -9 -9 -8 -8 ------- Run | Yrd Mat Min Mat Min Exi Min Mat Traps Triggered 1 | . 1 . . . . . . Indirectly . | . . . . . . . . Trap Hack Attempts . | . . . . . . . . Triggered . | . . . . . . . . Disarmed . | . . . . . . . . Reprogrammed . | . . . . . . . . Reused . | . . . . . . . . Traps Extracted . | . . . . . . . . Installed . | . . . . . . . . Triggered . | . . . . . . . . Machines | -11 -10 -10 -9 -9 -9 -8 -8 ---------- Run | Yrd Mat Min Mat Min Exi Min Mat Machines Disabled 2 | . . . . . . . 2 Max in Single Turn 2 | . . . . . . . 2 Machines Repaired . | . . . . . . . . Machines Dismantled . | . . . . . . . . Machines Sabotaged . | . . . . . . . . Overloaded Fab Kills . | . . . . . . . . Hacking | -11 -10 -10 -9 -9 -9 -8 -8 --------- Run | Yrd Mat Min Mat Min Exi Min Mat Machines Accessed 3 | . . . 1 . 1 . 1 Terminals 2 | . . . 1 . . . 1 Fabricators . | . . . . . . . . Repair Stations . | . . . . . . . . Recycling Units . | . . . . . . . . Scanalyzers . | . . . . . . . . Garrison Access . | . . . . . . . . Total Hacks 6 | . . . 2 . 1 . 3 Successful 3 | . . . 1 . 1 . 1 Failed 3 | . . . 1 . . . 2 Catastrophic 1 | . . . . . . . 1 Database Lockouts . | . . . . . . . . Manual 6 | . . . 2 . 1 . 3 Terminals 5 | . . . 2 . . . 3 Fabricators . | . . . . . . . . Repair Stations . | . . . . . . . . Recycling Units . | . . . . . . . . Scanalyzers . | . . . . . . . . Garrison Access . | . . . . . . . . Terminal Hacks 3 | . . . 1 . 1 . 1 Part Schematic 1 | . . . . . . . 1 Branch Access Points 1 | . . . 1 . . . . Proto ID Catalog 1 | . . . . . 1 . . Fabricator Hacks . | . . . . . . . . Repair Station Hacks . | . . . . . . . . Recycling Unit Hacks . | . . . . . . . . Scanalyzer . | . . . . . . . . Garrison Access Hacks . | . . . . . . . . Unauthorized Hacks . | . . . . . . . . Terminals . | . . . . . . . . Fabricators . | . . . . . . . . Repair Stations . | . . . . . . . . Recycling Units . | . . . . . . . . Scanalyzers . | . . . . . . . . Garrison Access . | . . . . . . . . Data Cores Recovered . | . . . . . . . . Used . | . . . . . . . . Hacking Detections 2 | . . . 1 . . . 1 Full Trace Events . | . . . . . . . . Feedback Events . | . . . . . . . . Feedback Blocked . | . . . . . . . . Robot Schematics Acquired . | . . . . . . . . Robots Built . | . . . . . . . . Authchips . | . . . . . . . . Time . | . . . . . . . . Total Robot Build Rating . | . . . . . . . . Part Schematics Acquired 1 | . . . . . . . 1 Parts Built . | . . . . . . . . Authchips . | . . . . . . . . Time . | . . . . . . . . Total Part Build Rating . | . . . . . . . . Part Studies Acquired . | . . . . . . . . Parts Repaired . | . . . . . . . . Time . | . . . . . . . . Parts Recycled . | . . . . . . . . Recycled Matter . | . . . . . . . . Retrieved Matter . | . . . . . . . . Retrieved Components . | . . . . . . . . Parts Scanalyzed . | . . . . . . . . Part Schematics Acquired . | . . . . . . . . Parts Damaged . | . . . . . . . . Bothacking | -11 -10 -10 -9 -9 -9 -8 -8 ------------ Run | Yrd Mat Min Mat Min Exi Min Mat Used RIF Installer . | . . . . . . . . Robots Hacked . | . . . . . . . . Non-combat . | . . . . . . . . Combat . | . . . . . . . . Robot Hacks Applied . | . . . . . . . . Relay Couplers Released . | . . . . . . . . Fabnet Peak Effective % . | . . . . . . . . Robots Rewired . | . . . . . . . . Allies Hacked . | . . . . . . . . Hacks Repelled . | . . . . . . . . Allies | -11 -10 -10 -9 -9 -9 -8 -8 -------- Run | Yrd Mat Min Mat Min Exi Min Mat Total Allies . | . . . . . . . . Largest Group . | . . . . . . . . Highest-Rated Group . | . . . . . . . . Highest-Rated Ally . | . . . . . . . . Total Orders . | . . . . . . . . Ally Attacks . | . . . . . . . . Total Damage . | . . . . . . . . Kills . | . . . . . . . . Allies Corrupted . | . . . . . . . . Allies Melted . | . . . . . . . . Intel | -11 -10 -10 -9 -9 -9 -8 -8 ------- Run | Yrd Mat Min Mat Min Exi Min Mat Active Infowar (turns) . | . . . . . . . . Robot Analysis Total . | . . . . . . . . Derelict Logs Recovered 2 | . . . . 2 . . . Drone Launches . | . . . . . . . . Drone Recoveries . | . . . . . . . . Exploration | -11 -10 -10 -9 -9 -9 -8 -8 ------------- Run | Yrd Mat Min Mat Min Exi Min Mat Turns Passed 481 | 57 51 36 61 101 79 4 92 Spaces Moved 847 | 63 94 66 99 193 210 11 111 Core 337 | 63 94 66 72 . . . 42 Treads . | . . . . . . . . Legs . | . . . . . . . . Wheels . | . . . . . . . . Hover . | . . . . . . . . Flight 510 | . . . 27 193 210 11 69 Fastest Speed 34 | 50 50 50 37 34 37 37 37 Average Speed 44 | 84 50 50 46 35 37 37 43 Slowest Speed 117 | 100 50 50 50 37 37 37 117 Overloaded Moves . | . . . . . . . . Propulsion Burnouts . | . . . . . . . . Robots Hopped 3 | . . . 2 1 . . . Potential Cave-ins . | . . . . . . . . Cave-ins Triggered . | . . . . . . . . Exploration Rate (%) 24 | 4 22 25 15 44 60 7 21 Regions Visited 7 Branch Regions 4 Pre-discovered Areas 1 | . . . . 1 . . . Known Exits Taken 1 | . . . 1 . . . . Unknown Exits Taken 6 | 1 1 1 . 1 1 1 . Scrap Searched 1 | . . . . 1 . . . Spaces Dug 2 | . . . . . . . 2 Terrain Destroyed 23 | . . . . . . . 23 Melee . | . . . . . . . . Projectile 6 | . . . . . . . 6 AOE 17 | . . . . . . . 17 Terrain Rammed . | . . . . . . . . Walls Destroyed . | . . . . . . . . Machines Disabled . | . . . . . . . . Actions | -11 -10 -10 -9 -9 -9 -8 -8 --------- Run | Yrd Mat Min Mat Min Exi Min Mat Total 913 | 65 97 68 107 212 210 10 144 Wait 28 | . . . 4 13 . . 11 Move 835 | 62 94 65 94 190 209 10 111 Hop 3 | . . . 2 1 . . . Pick Up 3 | . . . . . 1 . 2 Fast Attach 8 | 2 1 . 2 3 . . . Attach 1 | . . . 1 . . . . Detach 2 | 1 . . . . . . 1 Swap 1 | . . . . . . . 1 Drop 3 | . . . . . . . 3 Fire 20 | . . . 3 5 . . 12 Melee . | . . . . . . . . Ram 9 | . 2 3 1 . . . 3 Kick . | . . . . . . . . Crush . | . . . . . . . . Escape Stasis . | . . . . . . . . Rewire . | . . . . . . . . Trap . | . . . . . . . . Miscellaneous . | . . . . . . . . Route ------- -11/Scrapyard -10/Materials -10/Mines -9/Materials -9/Mines (discovered 2 exits: *Mat / *Exi) -9/Exiles -8/Mines -8/Materials History --------- Turn | Location | Event 7 | -11/Scrapyard | Discovered new exit (range 15) 58 | -11/Scrapyard | Entered Materials 104 | -10/Materials | Discovered new exit (range 8) 109 | -10/Materials | Entered Mines 137 | -10/Mines | Discovered new exit (range 13) 145 | -10/Mines | Entered Materials 145 | -9/Materials | Evolved 2 slots: Propulsion x1, Utility x1 173 | -9/Materials | Identified exit to Mines 206 | -9/Materials | Entered Mines 207 | -9/Mines | Assembled infested the area 216 | -9/Mines | Discovered new exit (range 3) 270 | -9/Mines | Learned location of Zion (-7) 305 | -9/Mines | Deemed a non-threat by the Exiles lab entrance 305 | -9/Mines | Discovered new exit (range 5) 307 | -9/Mines | Entered Exiles 317 | -9/Exiles | Met 8R-AWN 323 | -9/Exiles | Met EX-HEX 333 | -9/Exiles | Met EX-BIN 337 | -9/Exiles | Aligned with FarCom system 338 | -9/Exiles | Given EX-Vault access code 347 | -9/Exiles | Opened EX-Vault 350 | -9/Exiles | Found Skeleton Box 358 | -9/Exiles | Warned to stay clear of 0b10 Research branches 369 | -9/Exiles | Met EX-DEC 381 | -9/Exiles | Discovered new exit (range 14) 386 | -9/Exiles | Left Exiles lab with Skeleton Box 386 | -9/Exiles | Entered Mines 387 | -8/Mines | Discovered new exit (range 10) 390 | -8/Mines | Entered Materials 390 | -8/Materials | Evolved 2 slots: Utility x2 454 | -8/Materials | Core integrity fell below 50% 463 | -8/Materials | Core integrity fell below 20% 482 | -8/Materials | Destroyed by G-47 Trooper with Particle Gun Last Messages --------------- U-05 Engineer lays Concrete. Flight Unit destroyed. Critical hit (Burn: +37). Dropped Gauss Cannon. U-05 Engineer lays Concrete. Dropped Assault Rifle. U-05 Engineer lays Concrete. Flight Unit destroyed. U-05 Engineer lays Concrete. Acquired 3 matter. U-05 Engineer lays Concrete. Slammed into G-47 Trooper. Slammed into G-50 Soldier. Connecting with Terminal... Current location identified: Materials >>Schematic(Hacking Suite) Downloading schematic... Hacking Suite Rating: 3 Schematic downloaded. Map ----- +----------------------------------------------------+ | ?????????????????????????????????????????????????? | | ?????????????????????????????????????????????????? | | ?????????????????????????????????????????????????? | | ?????????????????????????????????????????????????? | | ?????????????????????????????????????????????????? | | ?????????????????????????????????????????????????? | | ?????????????????????????????????????????????????? | | ?????????????????????????????????????????????????? | | ?????????????????????????????????????????????????? | | ?????????????????????????????????????????????????? | | ?????????????????????????????????????????????????? | | ?????????????????????????????????????????????????? | | ?????????????????????????????????????????????????? | | ?????????????????????????????????????????????????? | | ?????????????????????????????????????????????????? | | ?????????????????????????????????????????????????? | | ?????????????????????????????????????????????????? | | ?????????????????????????????????????????????????? | | ?????????????????????????????????????????????????? | | ?????????????????????????????????????????????????? | | ?????????????????##########??????????????????????? | | ?????????????????# g =#??????????????????????? | | ?????????????????# """" #??????????????????????? | | ?????????????????#! """" #??????????????????????? | | ?????????????????# """"g #??????????????????????? | | ?????????????????# Yg @#??????????????????????? | | ?????????????????#"" g #??????????????????????? | | ?????????????????#"T #?????????#######?????#? | | ?????????????????#"" ! #?????????# ##### ## | | ?????????????????# Y #?????????# | | ?????????????????#####g############## " # | | ???????????????????# ! # | | ???????????? u ############ ######## | | ???????? #??????????## ## """ | | ????????? #???????????# ## "Y" "" | | ?????????##### ##### #???????????# ## "" | | ?????????????#?????## ##???????????# ## "" | | ????????????????????# #????????????# ##! | | ????????????????????# #????????????# #? | | ????????????????????# +????????????# ####"## | | ????????????????????# #????????????# | | ????????????????????# #????????????# | | ????????????????????# #????????????# !! | | ???????????????????? ############# !!] | | ???????????????????? !!] | | ???????????????????? [ % % | | ????????????????????? ] % | | ???????????????????????? ##########+########### | | ????????????????????????????????? ???????# | | ???????????????????????????????= #??????## | +----------------------------------------------------+ Best States ------------- Heat Dissipation 31 Energy Generation 10 Energy Capacity 125 Matter Stores 300 Matter Capacity 300 Sight Range 16 Terrain Scan Density 10 Evasion (%) 63 Item Schematics ----------------- Hacking Suite | -8/Materials | Hacked Robot Schematics ------------------ None Fabricated ------------ Nothing Repaired ---------- Nothing Studied --------- None Alien Tech Used ----------------- None Achievements -------------- None Challenges ------------ None Game ------ Seed NeutrinoTeslaInjector Manual? 0 Play Time 00:08:35 Cumulative 344.9 hours Start 2025.10.25 @ 21:20:05 End 2025.10.25 @ 21:27:19 Sessions 1 Manual Loads 0 Difficulty Rogue Special Mode None Game No. 322 Rogue 133 Adventurer 177 Explorer 12 Win Type - Total 71 Types 21/2/17/2/12/0/5/6/0/6 Lore% 59 Gallery% 57 Achievement% 49 Wizard Run 0 Options --------- Layout 0 ASCII 0 Keyboard 0 Movement Numpad Keybinds 0 Fullscreen 2 Font 12/Smallcaps Map View 83x54 Zoom Use 0% Tactical HUD 0 Map Filters NONE Filters NONE Steam 1 RUN: f13714c0-76c1-4397-8f69-0384ab57293b